[Event "*** Titled Tuesday Blitz"]
[Site "Chess.com"]
[Date "2020.12.29"]
[Round "8"]
[White "WPWPWP-2015"]
[Black "GregShahade"]
[Result "0-1"]
[WhiteElo "2472"]
[BlackElo "2668"]
[TimeControl "180+1"]
[EndTime "11:31:12 PST"]
[Termination "GregShahade won by resignation"]

1. e4 {[%clk 0:02:52.5]} 1... e5 {[%clk 0:02:59.8]} 2. Nf3 {[%clk 0:02:51.9]}
2... Nc6 {[%clk 0:03:00.2]} 3. Bb5 {[%clk 0:02:51.1]} 3... a6 {[%clk 0:03:00.6]}
4. Ba4 {[%clk 0:02:50.9]} 4... Nf6 {[%clk 0:03:01]} 5. O-O {[%clk 0:02:49.5]}
5... Be7 {[%clk 0:03:01.3]} 6. Re1 {[%clk 0:02:49.6]} 6... b5 {[%clk 0:03:01.5]}
7. Bb3 {[%clk 0:02:49.2]} 7... O-O {[%clk 0:03:02.3]} 8. d4 {[%clk 0:02:48.4]}
8... Nxd4 {[%clk 0:03:01.8]} 9. Nxe5 {[%clk 0:02:40.7]} 9... Nxb3 {[%clk
0:02:52.2]} 10. axb3 {[%clk 0:02:40.4]} 10... Bb7 {[%clk 0:02:52.7]} 11. Nc3
{[%clk 0:02:36.6]} 11... d6 {[%clk 0:02:39.5]} 12. Nd3 {[%clk 0:02:26.7]} 12...
Re8 {[%clk 0:02:38.2]} 13. b4 {[%clk 0:02:22.1]} 13... Bf8 {[%clk 0:02:36.1]}
14. f3 {[%clk 0:02:20.4]} 14... d5 {[%clk 0:02:31]} 15. e5 {[%clk 0:02:15.1]}
15... Nd7 {[%clk 0:02:26.2]} 16. Bf4 {[%clk 0:02:04.2]} 16... Nb6 {[%clk
0:01:53.4]} 17. Ne2 {[%clk 0:01:36.2]} 17... d4 {[%clk 0:01:41.1]} 18. Nc5
{[%clk 0:01:30.1]} 18... Bxc5 {[%clk 0:01:17.2]} 19. bxc5 {[%clk 0:01:31]} 19...
Na4 {[%clk 0:01:17]} 20. b4 {[%clk 0:01:00.7]} 20... Nc3 {[%clk 0:01:07.8]} 21.
Nxc3 {[%clk 0:00:59.5]} 21... dxc3 {[%clk 0:01:07.8]} 22. Ra3 {[%clk 0:00:55.4]}
22... Qe7 {[%clk 0:00:59.9]} 23. Rxc3 {[%clk 0:00:53.3]} 23... a5 {[%clk
0:00:58.2]} 24. bxa5 {[%clk 0:00:49]} 24... Rxa5 {[%clk 0:00:57.5]} 25. c6
{[%clk 0:00:35.5]} 25... b4 {[%clk 0:00:55.1]} 26. Rc4 {[%clk 0:00:30.4]} 26...
Rc5 {[%clk 0:00:42.7]} 27. Qd4 {[%clk 0:00:23.2]} 27... Rxc6 {[%clk 0:00:38]}
28. Rxb4 {[%clk 0:00:23]} 28... Ba6 {[%clk 0:00:34.7]} 29. Qe4 {[%clk
0:00:21.8]} 29... Qc5+ {[%clk 0:00:30.9]} 30. Kh1 {[%clk 0:00:15]} 30... Qxc2
{[%clk 0:00:21.4]} 31. Qxc2 {[%clk 0:00:14.2]} 31... Rxc2 {[%clk 0:00:22.3]} 32.
Ra4 {[%clk 0:00:14.5]} 32... Bb5 {[%clk 0:00:21.2]} 33. Ra7 {[%clk 0:00:14]}
33... c6 {[%clk 0:00:21]} 34. h3 {[%clk 0:00:13.8]} 34... h5 {[%clk 0:00:20.9]}
35. e6 {[%clk 0:00:12.8]} 35... Rxe6 {[%clk 0:00:16.8]} 36. Rxe6 {[%clk
0:00:12.3]} 36... fxe6 {[%clk 0:00:17.7]} 37. Be5 {[%clk 0:00:12.8]} 37... Re2
{[%clk 0:00:16.4]} 38. f4 {[%clk 0:00:07.6]} 38... Bc4 {[%clk 0:00:15.8]} 39.
Rxg7+ {[%clk 0:00:06.7]} 39... Kf8 {[%clk 0:00:15.8]} 40. Rg5 {[%clk 0:00:04.6]}
40... Bd5 {[%clk 0:00:16]} 41. Kg1 {[%clk 0:00:04.5]} 41... c5 {[%clk
0:00:16.2]} 42. g4 {[%clk 0:00:04.6]} 42... hxg4 {[%clk 0:00:15.4]} 43. hxg4
{[%clk 0:00:05.1]} 43... c4 {[%clk 0:00:15.7]} 44. Kf1 {[%clk 0:00:05.2]} 44...
Re3 {[%clk 0:00:15]} 45. Rh5 {[%clk 0:00:04.4]} 45... c3 {[%clk 0:00:12.2]} 46.
Rh8+ {[%clk 0:00:04.5]} 46... Ke7 {[%clk 0:00:12.6]} 47. Rc8 {[%clk 0:00:04.5]}
47... Rf3+ {[%clk 0:00:09.6]} 48. Ke2 {[%clk 0:00:04.1]} 48... Rg3 {[%clk
0:00:09.2]} 49. Rxc3 {[%clk 0:00:03.1]} 49... Rxg4 {[%clk 0:00:08.9]} 50. Rc7+
{[%clk 0:00:04]} 50... Kd8 {[%clk 0:00:09.1]} 51. Ra7 {[%clk 0:00:04.6]} 51...
Kc8 {[%clk 0:00:08.9]} 52. Ke3 {[%clk 0:00:04.8]} 52... Rg3+ {[%clk 0:00:08.4]}
53. Kd4 {[%clk 0:00:05.1]} 53... Rb3 {[%clk 0:00:07.7]} 54. Kc5 {[%clk
0:00:05.1]} 54... Rb7 {[%clk 0:00:07.3]} 55. Ra6 {[%clk 0:00:05.5]} 55... Kd7
{[%clk 0:00:07.2]} 56. Rd6+ {[%clk 0:00:05.3]} 56... Ke7 {[%clk 0:00:07.5]} 57.
Ra6 {[%clk 0:00:06.2]} 57... Rd7 {[%clk 0:00:07]} 58. Ra3 {[%clk 0:00:05.4]}
58... Kf7 {[%clk 0:00:07.1]} 59. Rh3 {[%clk 0:00:05.4]} 59... Kg6 {[%clk
0:00:07.3]} 60. Rg3+ {[%clk 0:00:05.6]} 60... Kf5 {[%clk 0:00:07.4]} 61. Rg5+
{[%clk 0:00:05.7]} 61... Ke4 {[%clk 0:00:07.7]} 62. Rg6 {[%clk 0:00:06.1]} 62...
Rd8 {[%clk 0:00:07.7]} 63. Rh6 {[%clk 0:00:06.1]} 63... Rc8+ {[%clk 0:00:08]}
64. Kd6 {[%clk 0:00:05.7]} 64... Rc6+ {[%clk 0:00:08]} 65. Kd7 {[%clk
0:00:06.2]} 65... Ra6 {[%clk 0:00:08.2]} 66. Rh2 {[%clk 0:00:06.1]} 66... Kf5
{[%clk 0:00:07.9]} 67. Rh5+ {[%clk 0:00:06]} 67... Ke4 {[%clk 0:00:07.8]} 68.
Rh6 {[%clk 0:00:06.2]} 68... Ra7+ {[%clk 0:00:06.3]} 69. Kd6 {[%clk 0:00:06.2]}
69... Ra6+ {[%clk 0:00:06.8]} 70. Kd7 {[%clk 0:00:06.6]} 70... Ra7+ {[%clk
0:00:07.3]} 71. Kd6 {[%clk 0:00:06.8]} 71... Ra6+ {[%clk 0:00:07.8]} 72. Kc5
{[%clk 0:00:07.2]} 72... Rc6+ {[%clk 0:00:07.6]} 73. Kb5 {[%clk 0:00:07.7]}
73... Rc1 {[%clk 0:00:07.6]} 74. Rh2 {[%clk 0:00:07.7]} 74... Rb1+ {[%clk
0:00:07.6]} 75. Kc5 {[%clk 0:00:06.9]} 75... Rc1+ {[%clk 0:00:07.5]} 76. Kd6
{[%clk 0:00:07.2]} 76... Rc6+ {[%clk 0:00:08.1]} 77. Ke7 {[%clk 0:00:07.5]}
77... Kf5 {[%clk 0:00:08.7]} 78. Rh5+ {[%clk 0:00:06.9]} 78... Ke4 {[%clk
0:00:09.1]} 79. Kf6 {[%clk 0:00:06.7]} 79... Ra6 {[%clk 0:00:08.8]} 80. Rh2
{[%clk 0:00:06.7]} 80... Ra8 {[%clk 0:00:08.8]} 81. Re2+ {[%clk 0:00:06.7]}
81... Kf3 {[%clk 0:00:09.2]} 82. Re1 {[%clk 0:00:06.9]} 82... Rf8+ {[%clk
0:00:08.7]} 83. Kg5 {[%clk 0:00:07.1]} 83... Rf5+ {[%clk 0:00:08.7]} 84. Kg6
{[%clk 0:00:07.2]} 84... Kf2 {[%clk 0:00:08.7]} 85. Rc1 {[%clk 0:00:07]} 85...
Kf3 {[%clk 0:00:08.4]} 86. Rd1 {[%clk 0:00:07.2]} 86... Rf8 {[%clk 0:00:07.4]}
87. Rd3+ {[%clk 0:00:06.9]} 87... Ke2 {[%clk 0:00:07.2]} 88. Rd4 {[%clk
0:00:07.1]} 88... Ke3 {[%clk 0:00:07.4]} 89. Rd1 {[%clk 0:00:07.3]} 89... Be4+
{[%clk 0:00:07]} 90. Kg5 {[%clk 0:00:05.8]} 90... Rf5+ {[%clk 0:00:06]} 91. Kg4
{[%clk 0:00:06]} 91... Bf3+ {[%clk 0:00:05]} 92. Kg3 {[%clk 0:00:05.4]} 92...
Bxd1 {[%clk 0:00:05.2]} 93. Bd6 {[%clk 0:00:05.8]} 93... Ke4 {[%clk 0:00:05.6]}
94. Bc7 {[%clk 0:00:05.8]} 94... Kd5 {[%clk 0:00:05.8]} 95. Bb8 {[%clk 0:00:06]}
95... Bc2 {[%clk 0:00:06.6]} 96. Bc7 {[%clk 0:00:06.2]} 96... Be4 {[%clk
0:00:07.5]} 97. Bb8 {[%clk 0:00:06.5]} 97... Rf7 {[%clk 0:00:08.2]} 98. Be5
{[%clk 0:00:06]} 98... Rf5 {[%clk 0:00:08.3]} 99. Bb8 {[%clk 0:00:05.8]} 99...
Rf8 {[%clk 0:00:09]} 100. Bc7 {[%clk 0:00:06]} 100... Rg8+ {[%clk 0:00:09.6]}
101. Kf2 {[%clk 0:00:05.4]} 101... Rg7 {[%clk 0:00:10.4]} 102. Be5 {[%clk
0:00:05.2]} 102... Rf7 {[%clk 0:00:10.9]} 103. Ke3 {[%clk 0:00:05.4]} 103... Rb7
{[%clk 0:00:09.8]} 104. Kf2 {[%clk 0:00:05.2]} 104... Rb3 {[%clk 0:00:10.4]}
105. Ke2 {[%clk 0:00:05.4]} 105... Bf5 {[%clk 0:00:11]} 106. Bc7 {[%clk
0:00:05.2]} 106... Ke4 {[%clk 0:00:11.5]} 107. Kd2 {[%clk 0:00:05.1]} 107... Rf3
{[%clk 0:00:12.1]} 108. Ke2 {[%clk 0:00:05.4]} 108... Rxf4 {[%clk 0:00:12.6]}
109. Bd6 {[%clk 0:00:05.1]} 109... Rf3 {[%clk 0:00:12.7]} 110. Kd2 {[%clk
0:00:05.3]} 110... Rh3 {[%clk 0:00:12.9]} 111. Ke2 {[%clk 0:00:05.7]} 111... Kd5
{[%clk 0:00:13.2]} 112. Bc7 {[%clk 0:00:05.5]} 112... e5 {[%clk 0:00:13.9]} 113.
Kf2 {[%clk 0:00:05.8]} 113... e4 {[%clk 0:00:14.6]} 114. Kg2 {[%clk 0:00:06.1]}
114... Rb3 {[%clk 0:00:15.5]} 115. Bf4 {[%clk 0:00:05.8]} 115... Kc4 {[%clk
0:00:15.7]} 116. Bg5 {[%clk 0:00:05.7]} 116... Kd3 {[%clk 0:00:16.6]} 117. Kg3
{[%clk 0:00:06]} 117... Rb7 {[%clk 0:00:16.7]} 118. Kf4 {[%clk 0:00:06.3]}
118... Bh7 {[%clk 0:00:16.6]} 119. Bh4 {[%clk 0:00:06.6]} 119... Rf7+ {[%clk
0:00:16.7]} 120. Ke5 {[%clk 0:00:06.6]} 120... e3 {[%clk 0:00:16.9]} 121. Ke6
{[%clk 0:00:07.2]} 121... Rf1 {[%clk 0:00:16.7]} 122. Bg3 {[%clk 0:00:07.5]}
122... e2 {[%clk 0:00:17]} 123. Be1 {[%clk 0:00:07.8]} 123... Rxe1 {[%clk
0:00:16.3]} 0-1

[Event "*** Titled Tuesday Blitz"]
[Site "Chess.com"]
[Date "2020.12.29"]
[Round "9"]
[White "Tsyhanchuk_Stanislav"]
[Black "Moon_stone123"]
[Result "0-1"]
[WhiteElo "2277"]
[BlackElo "2428"]
[TimeControl "180+1"]
[EndTime "11:39:36 PST"]
[Termination "Moon_stone123 won by resignation"]

1. d4 {[%clk 0:03:00.9]} 1... d5 {[%clk 0:02:57]} 2. Nf3 {[%clk 0:03:01]} 2...
Nf6 {[%clk 0:02:56.7]} 3. c4 {[%clk 0:03:00.9]} 3... dxc4 {[%clk 0:02:56.4]} 4.
e3 {[%clk 0:02:59.8]} 4... Bg4 {[%clk 0:02:56.7]} 5. Bxc4 {[%clk 0:02:59.1]}
5... e6 {[%clk 0:02:56.8]} 6. O-O {[%clk 0:02:58.9]} 6... Nc6 {[%clk 0:02:56.3]}
7. h3 {[%clk 0:02:58.3]} 7... Bh5 {[%clk 0:02:55.9]} 8. b3 {[%clk 0:02:46.1]}
8... a6 {[%clk 0:02:54.6]} 9. Ba3 {[%clk 0:02:44.7]} 9... Bxa3 {[%clk
0:02:52.3]} 10. Nxa3 {[%clk 0:02:45.6]} 10... O-O {[%clk 0:02:52.2]} 11. Rc1
{[%clk 0:02:44.4]} 11... Qe7 {[%clk 0:02:49.8]} 12. Nb1 {[%clk 0:02:42.8]} 12...
e5 {[%clk 0:02:49]} 13. dxe5 {[%clk 0:02:40.6]} 13... Nxe5 {[%clk 0:02:48.6]}
14. Be2 {[%clk 0:02:38.7]} 14... Rfd8 {[%clk 0:02:47.8]} 15. Nbd2 {[%clk
0:02:36.1]} 15... Nxf3+ {[%clk 0:02:45]} 16. Bxf3 {[%clk 0:02:32.7]} 16... Bxf3
{[%clk 0:02:44.8]} 17. gxf3 {[%clk 0:02:33.6]} 17... Qd7 {[%clk 0:02:41.8]} 18.
Ne4 {[%clk 0:02:20.1]} 18... Qxh3 {[%clk 0:02:36.7]} 19. Nxf6+ {[%clk
0:02:19.1]} 19... gxf6 {[%clk 0:02:37.6]} 20. Qc2 {[%clk 0:02:16.4]} 20... Kh8
{[%clk 0:02:36.8]} 0-1

[Event "*** Titled Tuesday Blitz"]
[Site "Chess.com"]
[Date "2020.12.29"]
[Round "9"]
[White "Nadeev_Sergey"]
[Black "Aemulus20"]
[Result "0-1"]
[WhiteElo "2473"]
[BlackElo "2605"]
[TimeControl "180+1"]
[EndTime "11:39:57 PST"]
[Termination "Aemulus20 won by resignation"]

1. e4 {[%clk 0:03:00.9]} 1... c5 {[%clk 0:02:57.6]} 2. Nf3 {[%clk 0:03:00]} 2...
g6 {[%clk 0:02:57.5]} 3. d4 {[%clk 0:02:58.7]} 3... cxd4 {[%clk 0:02:58.4]} 4.
Nxd4 {[%clk 0:02:59.3]} 4... Bg7 {[%clk 0:02:58.9]} 5. c4 {[%clk 0:02:59.9]}
5... Nc6 {[%clk 0:02:59.5]} 6. Be3 {[%clk 0:02:59.7]} 6... Nf6 {[%clk 0:03:00]}
7. Nc3 {[%clk 0:02:59.7]} 7... O-O {[%clk 0:03:00.7]} 8. Be2 {[%clk 0:02:58.3]}
8... d6 {[%clk 0:03:01.2]} 9. O-O {[%clk 0:02:57.3]} 9... Nxd4 {[%clk
0:03:01.8]} 10. Bxd4 {[%clk 0:02:57.3]} 10... a5 {[%clk 0:03:02.7]} 11. b3
{[%clk 0:02:51]} 11... Bd7 {[%clk 0:03:03.1]} 12. Rc1 {[%clk 0:02:50.4]} 12...
Bc6 {[%clk 0:03:03.7]} 13. f3 {[%clk 0:02:50.2]} 13... Nd7 {[%clk 0:03:04.4]}
14. Be3 {[%clk 0:02:49.4]} 14... Nc5 {[%clk 0:03:04.7]} 15. Qd2 {[%clk
0:02:48.7]} 15... e6 {[%clk 0:03:05]} 16. Rfd1 {[%clk 0:02:46.5]} 16... Be5
{[%clk 0:03:05.1]} 17. Bh6 {[%clk 0:02:31.8]} 17... Qh4 {[%clk 0:02:43.3]} 18.
f4 {[%clk 0:01:52.3]} 18... Bxc3 {[%clk 0:02:37.5]} 19. Rxc3 {[%clk 0:01:47.6]}
19... Qxh6 {[%clk 0:02:36.6]} 0-1

[Event "*** Titled Tuesday Blitz"]
[Site "Chess.com"]
[Date "2020.12.29"]
[Round "9"]
[White "Homino"]
[Black "SanchezKelvin"]
[Result "1-0"]
[WhiteElo "2303"]
[BlackElo "2425"]
[TimeControl "180+1"]
[EndTime "11:40:08 PST"]
[Termination "Homino won by resignation"]

1. e4 {[%clk 0:02:57.1]} 1... c5 {[%clk 0:02:59]} 2. Nf3 {[%clk 0:02:56.4]} 2...
d6 {[%clk 0:02:58.5]} 3. d4 {[%clk 0:02:56.4]} 3... cxd4 {[%clk 0:02:59.2]} 4.
Nxd4 {[%clk 0:02:56.1]} 4... Nf6 {[%clk 0:03:00.1]} 5. Nc3 {[%clk 0:02:55.8]}
5... g6 {[%clk 0:03:00.7]} 6. Be3 {[%clk 0:02:55.3]} 6... Bg7 {[%clk 0:03:01.3]}
7. f3 {[%clk 0:02:55.7]} 7... O-O {[%clk 0:03:01.7]} 8. Qd2 {[%clk 0:02:56.1]}
8... Nc6 {[%clk 0:03:02.3]} 9. O-O-O {[%clk 0:02:55.7]} 9... Nxd4 {[%clk
0:03:01]} 10. Bxd4 {[%clk 0:02:54]} 10... Qa5 {[%clk 0:02:56.6]} 11. Kb1 {[%clk
0:02:51]} 11... Kh8 {[%clk 0:02:53.4]} 12. h4 {[%clk 0:02:44.9]} 12... h5 {[%clk
0:02:52.1]} 13. g4 {[%clk 0:02:44]} 13... Be6 {[%clk 0:02:52]} 14. gxh5 {[%clk
0:02:41.3]} 14... Nxh5 {[%clk 0:02:51.2]} 15. Bxg7+ {[%clk 0:02:40.3]} 15...
Kxg7 {[%clk 0:02:49]} 16. Rg1 {[%clk 0:02:37.7]} 16... Rfc8 {[%clk 0:02:47.1]}
17. Rg5 {[%clk 0:02:33.6]} 17... Qb4 {[%clk 0:02:38.9]} 18. f4 {[%clk
0:02:03.9]} 18... Rh8 {[%clk 0:02:37.3]} 19. Rb5 {[%clk 0:01:55.5]} 19... Qxb5
{[%clk 0:02:28.9]} 20. Nxb5 {[%clk 0:01:48.6]} 20... Ng3 {[%clk 0:02:28.7]} 21.
Qc3+ {[%clk 0:01:47.4]} 21... Kg8 {[%clk 0:02:24.3]} 22. Qxg3 {[%clk 0:01:47.4]}
1-0

[Event "*** Titled Tuesday Blitz"]
[Site "Chess.com"]
[Date "2020.12.29"]
[Round "9"]
[White "Ave_Mariia"]
[Black "orestn"]
[Result "0-1"]
[WhiteElo "2481"]
[BlackElo "2365"]
[TimeControl "180+1"]
[EndTime "11:40:23 PST"]
[Termination "orestn won by resignation"]

1. d4 {[%clk 0:03:00.9]} 1... d5 {[%clk 0:02:59.5]} 2. c4 {[%clk 0:03:00.7]}
2... e6 {[%clk 0:03:00]} 3. Nf3 {[%clk 0:02:59.5]} 3... Nf6 {[%clk 0:02:59.8]}
4. g3 {[%clk 0:02:59.9]} 4... Nbd7 {[%clk 0:02:59.4]} 5. Bg2 {[%clk 0:03:00]}
5... c6 {[%clk 0:03:00.3]} 6. O-O {[%clk 0:03:00]} 6... dxc4 {[%clk 0:03:00.2]}
7. Nbd2 {[%clk 0:02:56.8]} 7... b5 {[%clk 0:02:59]} 8. a4 {[%clk 0:02:54.7]}
8... a5 {[%clk 0:02:54.9]} 9. axb5 {[%clk 0:02:41.4]} 9... cxb5 {[%clk
0:02:54.9]} 10. Ne5 {[%clk 0:02:41.3]} 10... Nd5 {[%clk 0:02:53.6]} 11. e4
{[%clk 0:02:33.9]} 11... Nb4 {[%clk 0:02:46.1]} 12. Ndf3 {[%clk 0:02:30.6]}
12... Bb7 {[%clk 0:02:40.1]} 13. Nxd7 {[%clk 0:02:25.8]} 13... Qxd7 {[%clk
0:02:39.4]} 14. Ne5 {[%clk 0:02:26.2]} 14... Qc7 {[%clk 0:02:37.9]} 15. Bf4
{[%clk 0:02:25.3]} 15... Bd6 {[%clk 0:02:38.1]} 16. Qg4 {[%clk 0:02:06]} 16...
O-O {[%clk 0:02:34.3]} 17. Rac1 {[%clk 0:01:42]} 17... Rae8 {[%clk 0:02:27.5]}
18. b3 {[%clk 0:01:32.9]} 18... f6 {[%clk 0:02:16.9]} 19. Nd3 {[%clk 0:01:30.3]}
19... Nxd3 {[%clk 0:02:14.8]} 0-1

[Event "*** Titled Tuesday Blitz"]
[Site "Chess.com"]
[Date "2020.12.29"]
[Round "9"]
[White "lacafi"]
[Black "Kale36"]
[Result "0-1"]
[WhiteElo "2112"]
[BlackElo "2272"]
[TimeControl "180+1"]
[EndTime "11:40:28 PST"]
[Termination "Kale36 won by resignation"]

1. d4 {[%clk 0:02:24.8]} 1... Nc6 {[%clk 0:02:58.9]} 2. Nf3 {[%clk 0:02:25.1]}
2... d6 {[%clk 0:02:58.5]} 3. e3 {[%clk 0:02:20]} 3... Bg4 {[%clk 0:02:48.8]} 4.
Be2 {[%clk 0:02:20.3]} 4... e5 {[%clk 0:02:48.3]} 5. dxe5 {[%clk 0:02:20.4]}
5... dxe5 {[%clk 0:02:47.8]} 6. Qxd8+ {[%clk 0:02:20]} 6... Rxd8 {[%clk
0:02:46.9]} 7. O-O {[%clk 0:02:20.2]} 7... e4 {[%clk 0:02:42.3]} 8. Nd4 {[%clk
0:02:18.7]} 8... Nxd4 {[%clk 0:02:41]} 9. Bxg4 {[%clk 0:02:06.7]} 9... Nxc2
{[%clk 0:02:40.9]} 10. Nc3 {[%clk 0:01:59.3]} 10... Nxa1 {[%clk 0:02:40.4]} 11.
b3 {[%clk 0:01:50.3]} 11... Nc2 {[%clk 0:02:37.8]} 12. Bb2 {[%clk 0:01:43.6]}
12... Ba3 {[%clk 0:02:31.5]} 13. Bxa3 {[%clk 0:01:39.3]} 13... Nxa3 {[%clk
0:02:30.9]} 14. Nxe4 {[%clk 0:01:38.3]} 14... Nf6 {[%clk 0:02:26.4]} 15. Nxf6+
{[%clk 0:01:36.9]} 15... gxf6 {[%clk 0:02:27.3]} 16. Rc1 {[%clk 0:01:36.6]}
16... c6 {[%clk 0:02:26.5]} 17. h4 {[%clk 0:01:33.4]} 17... Ke7 {[%clk
0:02:24.3]} 18. Rc5 {[%clk 0:01:30.1]} 18... Rd5 {[%clk 0:02:14.5]} 0-1

[Event "*** Titled Tuesday Blitz"]
[Site "Chess.com"]
[Date "2020.12.29"]
[Round "9"]
[White "Skatchkov_V"]
[Black "ExcitingTrap"]
[Result "0-1"]
[WhiteElo "2501"]
[BlackElo "2379"]
[TimeControl "180+1"]
[EndTime "11:40:54 PST"]
[Termination "ExcitingTrap won by resignation"]

1. d4 {[%clk 0:02:58]} 1... Nf6 {[%clk 0:02:59.7]} 2. c4 {[%clk 0:02:51.7]} 2...
g6 {[%clk 0:02:59.7]} 3. Nf3 {[%clk 0:02:52.6]} 3... Bg7 {[%clk 0:02:59.7]} 4.
g3 {[%clk 0:02:52.4]} 4... O-O {[%clk 0:02:59.5]} 5. Bg2 {[%clk 0:02:53.3]} 5...
d6 {[%clk 0:02:57.7]} 6. O-O {[%clk 0:02:53.4]} 6... c5 {[%clk 0:02:57.7]} 7.
Nc3 {[%clk 0:02:52.6]} 7... cxd4 {[%clk 0:02:55.6]} 8. Nxd4 {[%clk 0:02:53.5]}
8... Nc6 {[%clk 0:02:55.8]} 9. Nc2 {[%clk 0:02:35.5]} 9... Be6 {[%clk
0:02:47.6]} 10. b3 {[%clk 0:02:34.5]} 10... Qd7 {[%clk 0:02:43.5]} 11. Bb2
{[%clk 0:02:31.8]} 11... Bh3 {[%clk 0:02:41.2]} 12. Nd5 {[%clk 0:02:31.8]} 12...
Nxd5 {[%clk 0:02:38.7]} 13. Bxg7 {[%clk 0:02:32.7]} 13... Kxg7 {[%clk
0:02:37.5]} 14. cxd5 {[%clk 0:02:31]} 14... Ne5 {[%clk 0:02:29.2]} 15. Qd4
{[%clk 0:02:31]} 15... Kg8 {[%clk 0:02:27.1]} 16. Ne3 {[%clk 0:02:26.3]} 16...
Bxg2 {[%clk 0:02:25]} 17. Kxg2 {[%clk 0:02:27.2]} 17... a6 {[%clk 0:02:14.6]}
18. Rac1 {[%clk 0:02:26.1]} 18... Rac8 {[%clk 0:02:14]} 19. h3 {[%clk
0:02:23.6]} 19... f5 {[%clk 0:02:07.1]} 20. f4 {[%clk 0:02:21.1]} 20... Nf7
{[%clk 0:02:07]} 21. Nc4 {[%clk 0:02:20.8]} 21... Qb5 {[%clk 0:02:00.4]} 22. Rf3
{[%clk 0:02:21.2]} 22... Rc5 {[%clk 0:01:57.6]} 23. Rd1 {[%clk 0:02:20.9]} 23...
Rfc8 {[%clk 0:01:42.7]} 24. Re3 {[%clk 0:02:20.9]} 24... R8c7 {[%clk 0:01:35]}
25. Re6 {[%clk 0:02:21.1]} 25... Nd8 {[%clk 0:01:32.3]} 26. Nxd6 {[%clk
0:02:21]} 26... exd6 {[%clk 0:01:26.5]} 27. Re8+ {[%clk 0:02:21]} 27... Qxe8
{[%clk 0:01:26.1]} 0-1

[Event "*** Titled Tuesday Blitz"]
[Site "Chess.com"]
[Date "2020.12.29"]
[Round "9"]
[White "Kretov_Evgenij"]
[Black "CM_rui"]
[Result "1-0"]
[WhiteElo "2522"]
[BlackElo "2353"]
[TimeControl "180+1"]
[EndTime "11:41:42 PST"]
[Termination "Kretov_Evgenij won by checkmate"]

1. d4 {[%clk 0:03:00.9]} 1... Nf6 {[%clk 0:02:55.9]} 2. c4 {[%clk 0:03:00.7]}
2... e6 {[%clk 0:02:56.8]} 3. Nc3 {[%clk 0:03:00.3]} 3... Bb4 {[%clk 0:02:57.3]}
4. Bg5 {[%clk 0:03:00.1]} 4... O-O {[%clk 0:02:56.8]} 5. Qc2 {[%clk 0:02:59.5]}
5... d6 {[%clk 0:02:56.5]} 6. e3 {[%clk 0:02:59.5]} 6... h6 {[%clk 0:02:56]} 7.
Bh4 {[%clk 0:02:59.2]} 7... Nbd7 {[%clk 0:02:56.2]} 8. Nf3 {[%clk 0:02:58.7]}
8... Qe7 {[%clk 0:02:56.1]} 9. Bd3 {[%clk 0:02:57.5]} 9... e5 {[%clk 0:02:56.5]}
10. dxe5 {[%clk 0:02:51.3]} 10... dxe5 {[%clk 0:02:57.4]} 11. Nd2 {[%clk
0:02:50.5]} 11... Bxc3 {[%clk 0:02:51.5]} 12. Qxc3 {[%clk 0:02:50.1]} 12... b6
{[%clk 0:02:49.6]} 13. O-O-O {[%clk 0:02:43.1]} 13... Nc5 {[%clk 0:02:44.6]} 14.
Bc2 {[%clk 0:02:41.2]} 14... a5 {[%clk 0:02:40.7]} 15. f4 {[%clk 0:02:40.8]}
15... exf4 {[%clk 0:02:32.6]} 16. exf4 {[%clk 0:02:39.6]} 16... Bg4 {[%clk
0:01:57.3]} 17. Rhe1 {[%clk 0:02:37.6]} 17... Ne6 {[%clk 0:01:42.1]} 18. Nf3
{[%clk 0:02:36.1]} 18... Qb4 {[%clk 0:01:26.1]} 19. Bxf6 {[%clk 0:02:35]} 19...
gxf6 {[%clk 0:01:23.3]} 20. Qxf6 {[%clk 0:02:35.1]} 20... Qxc4 {[%clk
0:01:12.6]} 21. f5 {[%clk 0:02:22]} 21... Nc5 {[%clk 0:01:00.8]} 22. Rd4 {[%clk
0:02:11.9]} 22... Nd3+ {[%clk 0:00:44.6]} 23. Rxd3 {[%clk 0:02:07.7]} 23... Rad8
{[%clk 0:00:43.3]} 24. Rxd8 {[%clk 0:01:56.9]} 24... Rxd8 {[%clk 0:00:44.1]} 25.
Qxd8+ {[%clk 0:01:56.6]} 25... Kg7 {[%clk 0:00:44.3]} 26. f6# {[%clk 0:01:55.5]}
1-0

[Event "*** Titled Tuesday Blitz"]
[Site "Chess.com"]
[Date "2020.12.29"]
[Round "9"]
[White "Flopezin"]
[Black "UCantHandleDenker"]
[Result "1-0"]
[WhiteElo "2390"]
[BlackElo "2541"]
[TimeControl "180+1"]
[EndTime "11:42:03 PST"]
[Termination "Flopezin won by resignation"]

1. c4 {[%clk 0:03:00.9]} 1... Nf6 {[%clk 0:02:57]} 2. Nc3 {[%clk 0:03:00.4]}
2... d6 {[%clk 0:02:56.4]} 3. e4 {[%clk 0:03:00.4]} 3... g6 {[%clk 0:02:56.8]}
4. d4 {[%clk 0:03:00.9]} 4... Bg7 {[%clk 0:02:57.4]} 5. Be2 {[%clk 0:03:01.5]}
5... O-O {[%clk 0:02:57.9]} 6. Nf3 {[%clk 0:03:02.1]} 6... e5 {[%clk 0:02:58.1]}
7. d5 {[%clk 0:03:02.7]} 7... a5 {[%clk 0:02:57.4]} 8. Bg5 {[%clk 0:03:03.3]}
8... h6 {[%clk 0:02:57.9]} 9. Be3 {[%clk 0:03:03.7]} 9... Ng4 {[%clk 0:02:56.3]}
10. Bd2 {[%clk 0:03:04.2]} 10... f5 {[%clk 0:02:55.9]} 11. h3 {[%clk 0:03:04.7]}
11... Nf6 {[%clk 0:02:55.5]} 12. exf5 {[%clk 0:03:05.2]} 12... gxf5 {[%clk
0:02:52.7]} 13. Qc1 {[%clk 0:03:05.5]} 13... f4 {[%clk 0:02:40]} 14. g3 {[%clk
0:03:05.4]} 14... Bf5 {[%clk 0:02:37.4]} 15. gxf4 {[%clk 0:02:56.3]} 15... exf4
{[%clk 0:02:37.2]} 16. Bxf4 {[%clk 0:02:55.7]} 16... Re8 {[%clk 0:02:37.5]} 17.
Bxh6 {[%clk 0:02:47.7]} 17... Ne4 {[%clk 0:01:44]} 18. Rg1 {[%clk 0:02:31.9]}
18... Re7 {[%clk 0:01:41]} 19. Nxe4 {[%clk 0:02:18]} 19... Bxe4 {[%clk
0:01:40.8]} 20. Qc3 {[%clk 0:02:14.7]} 20... Qd7 {[%clk 0:01:34.5]} 21. O-O-O
{[%clk 0:01:52]} 21... Na6 {[%clk 0:01:18.3]} 22. Bxg7 {[%clk 0:01:49.1]} 22...
Rxg7 {[%clk 0:01:16.6]} 23. Rxg7+ {[%clk 0:01:48.7]} 23... Qxg7 {[%clk
0:01:15.7]} 24. Rg1 {[%clk 0:01:49.1]} 24... Bg6 {[%clk 0:01:00.6]} 25. Qxg7+
{[%clk 0:01:34]} 25... Kxg7 {[%clk 0:01:00.5]} 26. Nh4 {[%clk 0:01:33]} 1-0